{"text_format":"1","workbook":"xlsx","n_sheets":1,"sheets":["Sheet1"],"not_rendered":{"charts":2,"images":8,"macros":1,"external_links":0,"defined_names":10,"comments":0,"pivot_tables":0},"unopened":[],"bounds":{"document_bytes":16777216,"sheet_cells":100000,"rows_first":2000,"rows_last":500,"rows_between":2000,"halvings":0,"cell_chars":16384,"cell_head_chars":4096},"cells_cut":0,"cells_raw":0,"read":"whole","date_system":"1900"}

{"sheet":"Sheet1","index":0,"n_rows":35,"n_cols":41,"rows_kept":35,"cut":false,"hidden":false,"merged":[[18,0,23,4],[29,22,30,24],[1,22,2,27],[3,22,3,27],[21,22,22,27],[9,23,9,26],[18,25,18,26],[24,23,26,25]]}
[]
[null,null,null,null,null,null,null,null,null,null,null,null,null,null,null,null,null,null,null,null,null,null,"Macros enabled?"]
[]
[null,null,null,null,null,null,null,null,null,null,null,null,null,null,null,null,null,null,null,null,null,null,"Click to start and stop the animation",null,null,null,null,null,null,null,null,null,32]
[null,null,null,null,null,null,null,null,null,null,null,null,null,null,null,null,null,null,null,null,null,null,null,null,null,null,null,null,null,null,null,null,true,null,null,null,null,null,null,null,true]
[null,null,null,null,null,null,null,null,null,null,null,null,null,null,null,null,null,null,null,null,null,null,null,null,null,null,null,null,null,null,null,null,{"$f":"Beaufort_value*100/12","v":41.666666666666664},{"$f":"RANDBETWEEN(5,10)/10*wind_tree_force/25*wind_direction","v":0.83333333333333326},null,null,null,null,null,null,{"$f":"RAND()*Beaufort_value/6","v":5.5258440660457264E-2}]
[null,null,null,null,null,null,null,null,null,null,null,null,null,null,null,null,null,null,null,null,null,null,null,null,null,null,null,null,null,null,null,null,{"$f":"IF(RAND()>0.5,1,-1)","v":1}]
[null,null,null,null,null,null,null,null,null,null,null,null,null,null,null,null,null,null,null,null,null,null,null,null,null,null,null,null,null,null,null,null,15358,null,null,null,null,"Beaufort","Description",null,{"$f":"IF(Add_wind_in_star=TRUE,5-star_movement,5)","v":4.9447415593395423}]
[null,null,null,null,null,null,null,null,null,null,null,null,null,null,null,null,null,null,null,null,null,null,null,null,null,null,null,null,null,null,null,null,null,null,null,null,null,0,"Calm",null,{"$f":"IF(Add_wind_in_star=TRUE,2-(star_movement*2/5),2)","v":1.9778966237358171}]
[null,null,null,null,null,null,null,null,null,null,null,null,null,null,null,null,null,null,null,null,null,null,null,"Wind Parameters",null,null,null,null,null,null,null,null,0,1,-1,null,null,1,"Light Air",null,{"$f":"IF(Add_wind_in_star=TRUE,5-star_movement,5)","v":4.9447415593395423}]
[null,null,null,null,null,null,null,null,null,null,null,null,null,null,null,null,null,null,null,null,null,null,null,null,null,null,null,null,null,null,null,null,1,1,{"$f":"-AH11","v":-1},null,null,2,"Light Breeze",null,{"$f":"IF(Add_wind_in_star=TRUE,2-(star_movement*2/5),2)","v":1.9778966237358171}]
[null,null,null,null,null,null,null,null,null,null,null,null,{"$f":"RANDBETWEEN(1,3)","v":3},null,null,null,null,null,null,null,null,null,null,null,null,null,null,null,null,null,null,null,2,{"$f":"25+IF(Add_wind_in_tree=TRUE,tree_movement*2/AG12,0)","v":25.833333333333332},{"$f":"-AH12","v":-25.833333333333332},null,null,3,"Gentle Breeze",null,{"$f":"IF(Add_wind_in_star=TRUE,5-star_movement,5)","v":4.9447415593395423}]
[null,null,null,null,null,null,null,null,null,null,null,null,null,null,null,null,null,null,null,null,null,null,null,null,null,null,null,null,null,null,null,null,3,{"$f":"22+IF(Add_wind_in_tree=TRUE,tree_movement*2/AG13,0)","v":22.555555555555557},-22.555555555555557,null,null,4,"Moderate Breeze",null,{"$f":"IF(Add_wind_in_star=TRUE,2-(star_movement*2/5),2)","v":1.9778966237358171}]
[null,null,null,null,null,null,null,null,null,null,null,{"$f":"RANDBETWEEN(1,3)","v":1},null,null,null,null,null,null,null,null,null,null,null,"Beaufort scale:",null,null,null,null,null,null,null,null,4,{"$f":"18+IF(Add_wind_in_tree=TRUE,tree_movement*2/AG14,0)","v":18.416666666666668},-18.416666666666668,null,null,5,"Fresh Breeze",null,{"$f":"IF(Add_wind_in_star=TRUE,5-star_movement,5)","v":4.9447415593395423}]
[null,null,null,null,null,null,null,null,null,null,{"$f":"RANDBETWEEN(1,3)","v":2},null,null,null,null,null,null,null,null,null,null,null,null,0,null,null,12,null,null,null,null,null,5,{"$f":"19+IF(Add_wind_in_tree=TRUE,tree_movement*2/AG15,0)","v":19.333333333333332},-19.333333333333332,null,null,6,"Strong Breeze",null,{"$f":"IF(Add_wind_in_star=TRUE,2-(star_movement*2/5),2)","v":1.9778966237358171}]
[null,null,null,null,null,null,null,null,null,null,null,null,{"$f":"RANDBETWEEN(1,3)","v":3},null,null,null,null,null,null,null,null,null,null,null,null,null,null,null,null,null,null,null,6,{"$f":"16+IF(Add_wind_in_tree=TRUE,tree_movement*2/AG16,0)","v":16.277777777777779},-16.277777777777779,null,null,7,"High Wind",null,{"$f":"IF(Add_wind_in_star=TRUE,5-star_movement,5)","v":4.9447415593395423}]
[null,null,null,null,null,null,null,null,null,null,null,null,null,null,null,null,null,null,null,null,null,null,null,null,null,null,null,null,null,null,null,null,7,{"$f":"19+IF(Add_wind_in_tree=TRUE,tree_movement*2/AG17,0)","v":19.238095238095237},{"$f":"-AH17","v":-19.238095238095237},null,null,8,"Gale",null,{"$f":"IF(Add_wind_in_star=TRUE,2-(star_movement*2/5),2)","v":1.9778966237358171}]
[null,null,null,null,null,null,null,null,null,{"$f":"RANDBETWEEN(1,3)","v":1},null,null,null,{"$f":"RANDBETWEEN(1,3)","v":1},null,null,null,null,null,null,null,null,null,null,null,null,null,null,null,null,null,null,8,{"$f":"17+IF(Add_wind_in_tree=TRUE,tree_movement*2/AG18,0)","v":17.208333333333332},-17.208333333333332,null,null,9,"Strong Gale"]
["Visit the Cintellis University website to learn about the techniques used in this worksheet",null,null,null,null,null,null,null,null,null,{"$f":"RANDBETWEEN(1,3)","v":2},null,{"$f":"RANDBETWEEN(1,3)","v":1},null,null,null,null,null,null,null,null,null,null,5,"Beaufort",{"$f":"VLOOKUP(Beaufort_value,Beaufort_Table[],2,FALSE)","v":"Fresh Breeze"},null,null,null,null,null,null,9,{"$f":"14+IF(Add_wind_in_tree=TRUE,tree_movement*2/AG19,0)","v":14.185185185185185},-14.185185185185185,null,null,10,"Storm"]
[null,null,null,null,null,null,null,null,null,null,null,null,null,null,null,null,null,null,null,null,null,null,null,null,null,null,null,null,null,null,null,null,10,{"$f":"15+IF(Add_wind_in_tree=TRUE,tree_movement*2/AG20,0)","v":15.166666666666666},-15.166666666666666,null,null,11,"Violent Storm"]
[null,null,null,null,null,null,null,null,null,{"$f":"RANDBETWEEN(1,3)","v":3},null,null,null,{"$f":"RANDBETWEEN(1,3)","v":3},null,null,null,null,null,null,null,null,null,null,null,null,null,null,null,null,null,null,11,{"$f":"12+IF(Add_wind_in_tree=TRUE,tree_movement*2/AG21,0)","v":12.151515151515152},-12.151515151515152,null,null,12,"Hurricane"]
[null,null,null,null,null,null,null,null,null,null,null,{"$f":"RANDBETWEEN(1,3)","v":3},null,null,null,null,null,null,null,null,null,null,"Macros disabled?",null,null,null,null,null,null,null,null,null,12,{"$f":"13+IF(Add_wind_in_tree=TRUE,tree_movement*2/AG22,0)","v":13.138888888888889},-13.138888888888889]
[null,null,null,null,null,null,null,null,null,{"$f":"RANDBETWEEN(1,3)","v":3},null,null,null,null,{"$f":"RANDBETWEEN(1,3)","v":2},null,null,null,null,null,null,null,null,null,null,null,null,null,null,null,null,null,13,{"$f":"11+IF(Add_wind_in_tree=TRUE,tree_movement*2/AG23,0)","v":11.128205128205128},-11.128205128205128]
[null,null,null,null,null,null,null,null,{"$f":"RANDBETWEEN(1,3)","v":3},null,null,null,{"$f":"RANDBETWEEN(1,3)","v":3},null,null,{"$f":"RANDBETWEEN(1,3)","v":2},null,null,null,null,null,null,null,null,null,null,null,null,null,null,null,null,14,{"$f":"10+IF(Add_wind_in_tree=TRUE,tree_movement*2/AG24,0)","v":10.119047619047619},-10.119047619047619]
[null,null,null,null,null,null,null,null,null,null,{"$f":"RANDBETWEEN(1,3)","v":1},null,null,null,null,null,null,null,null,null,null,null,null,"Hit the spin button to animate the Cintellis Christmas tree",null,null,null,null,null,null,null,null,15,{"$f":"11+IF(Add_wind_in_tree=TRUE,tree_movement*2/AG25,0)","v":11.111111111111111},-11.111111111111111]
[null,null,null,null,null,null,null,null,null,null,null,null,null,null,null,null,null,null,null,null,null,null,null,null,null,null,null,null,null,null,null,null,16,{"$f":"8+IF(Add_wind_in_tree=TRUE,tree_movement*2/AG26,0)","v":8.1041666666666661},-8.1041666666666661]
[null,null,null,null,null,null,null,null,null,null,null,null,null,null,null,null,null,null,null,null,null,null,null,null,null,null,null,null,null,null,null,null,17,{"$f":"9+IF(Add_wind_in_tree=TRUE,tree_movement*2/AG27,0)","v":9.0980392156862742},-9.0980392156862742]
[null,null,null,null,null,null,null,null,null,null,null,null,null,null,null,null,null,null,null,null,null,null,null,null,null,null,null,null,null,null,null,null,18,{"$f":"6+IF(Add_wind_in_tree=TRUE,tree_movement*2/AG28,0)","v":6.0925925925925926},-6.0925925925925926]
[null,null,null,null,null,null,null,null,null,null,null,null,null,null,null,null,null,null,null,null,null,null,null,null,null,null,null,null,null,null,null,null,19,{"$f":"7+IF(Add_wind_in_tree=TRUE,tree_movement*2/AG29,0)","v":7.0877192982456139},-7.0877192982456139]
[null,null,null,null,null,null,null,null,null,null,null,null,null,null,null,null,null,null,null,null,null,null,"Follow us:",null,null,null,null,null,null,null,null,null,20,{"$f":"4+IF(Add_wind_in_tree=TRUE,tree_movement*2/AG30,0)","v":4.083333333333333},-4.083333333333333]
[null,"info@cintellis.com",null,null,null,null,null,null,null,null,null,null,null,null,null,null,null,null,null,null,null,null,null,null,null,null,null,null,null,null,null,null,21,{"$f":"5+IF(Add_wind_in_tree=TRUE,tree_movement*2/AG31,0)","v":5.0793650793650791},-5.0793650793650791]
[null,"http://www.cintellis.com",null,null,null,null,null,null,null,null,null,null,null,null,null,null,null,null,null,null,null,null,null,null,null,null,null,null,null,null,null,null,22,{"$f":"2+IF(Add_wind_in_tree=TRUE,tree_movement*2/AG32,0)","v":2.0757575757575757},-2.0757575757575757]
[null,null,null,null,null,null,null,null,null,null,null,null,null,null,null,null,null,null,null,null,null,null,null,null,null,null,null,null,null,null,null,null,23,{"$f":"3+IF(Add_wind_in_tree=TRUE,tree_movement*2/AG33,0)","v":3.0724637681159419},-3.0724637681159419]
[null,null,null,null,null,null,null,null,null,null,null,null,null,null,null,null,null,null,null,null,null,null,null,null,null,null,null,null,null,null,null,null,24,{"$f":"1+IF(Add_wind_in_tree=TRUE,tree_movement*2/AG34,0)","v":1.0694444444444444},-1.0694444444444444]
[null,null,null,null,null,null,null,null,null,null,null,null,null,null,null,null,null,null,null,null,null,null,null,null,null,null,null,null,null,null,null,null,25,0,0]